lending/lending_fUSD_20260310
["ID","MTS","AMOUNT","RATE_DAILY","PERIOD"]
[408101029,1773147046973,-168.0,0.00019848,2]
[408101030,1773147046983,-176.16002994,0.00019869,2]
[408101031,1773147046992,-586.0,0.00019869,2]
[408101032,1773147047002,-224.88505534,0.00019871,2]
[408101033,1773147047012,-224.88505534,0.00019872,2]
[408101034,1773147047022,-176.16002994,0.00019872,2]
[408101035,1773147047032,-9815.13497671,0.00019872,2]
[408101037,1773147220145,3228.24,0.00014159,2]
[408101038,1773147220168,9142.4,0.00014159,2]
[408101039,1773147220192,7629.36,0.00014159,2]
[408101040,1773147429832,2370.64,0.00014159,2]
[408101041,1773147429851,893.36,0.00014159,2]
[408101044,1773147712033,1500.0,0.00014,2]
[408101045,1773147736617,1466.42167329,0.0001,2]
[408101046,1773147751217,206.02185734,0.0002,120]
[408101047,1773147757252,6140.21832671,9.5e-05,3]
[408101048,1773147757282,1019.0827809,9.5e-05,3]
[408101049,1773147914826,1000.0,0.0001938,120]
[408101050,1773147990693,1707.48,0.00012443,2]
[408101051,1773148037287,-166.66,0.00014565,2]
[408101052,1773148037312,-150.0,0.00014647,2]
[408101053,1773148037337,-166.66,0.00014871,2]
[408101054,1773148037361,-166.66,0.00015178,2]
[408101055,1773148037386,-205.068153,0.0001539,7]
[408101056,1773148037409,-150.0,0.0001546,2]
[408101057,1773148037438,-166.66,0.00015485,2]
[408101058,1773148037464,-745.291847,0.00015532,2]
[408101074,1773148168365,-200.0,0.000152,2]
[408101075,1773148168390,-322.0,0.00015242,2]
[408101076,1773148168415,-300.0,0.00015242,2]
[408101077,1773148168439,-300.0,0.00015242,2]
[408101078,1773148168466,-300.0,0.00015242,2]
[408101079,1773148168490,-15157.0,0.00015243,2]
[408101080,1773148218133,600.0,0.0001938,120]
[408101085,1773148231360,-895.37234063,0.00015143,2]
[408101087,1773148231372,-276.0931161,0.00015143,2]
[408101089,1773148231382,-773.87,0.00015159,2]
[408101090,1773148231391,-245.25676558,0.00015243,2]
[408101091,1773148231403,-45.35323442,0.00015243,2]
[408101092,1773148231412,-302.08184624,0.00015315,2]
[408101093,1773148231424,-297.91815376,0.00015315,2]
[408101094,1773148231434,-194.29397326,0.00015387,2]
[408101095,1773148231446,-105.70602674,0.00015387,2]
[408101096,1773148231457,-250.0,0.00015387,2]
[408101097,1773148231467,-600.0,0.00015467,2]
[408101098,1773148231482,-600.0,0.00015467,2]
[408101099,1773148231495,-1176.108153,0.00015532,2]
[408101100,1773148231505,-1200.0,0.00015572,2]
[408101101,1773148231514,-300.0,0.00015573,2]
[408101102,1773148231523,-300.0,0.00015573,2]
[408101103,1773148231535,-181.44918097,0.00015573,2]
[408101104,1773148231544,-200.0,0.000156,5]
[408101105,1773148231555,-400.0,0.000157,5]
[408101106,1773148231565,-166.66,0.00015791,2]
[408101107,1773148231574,-300.0,0.00015799,2]
[408101108,1773148231583,-700.0,0.000158,5]
[408101109,1773148231592,-900.0,0.000159,5]
[408101110,1773148231602,-797.0,0.00015924,2]
[408101111,1773148231611,-215.0,0.00015924,2]
[408101112,1773148231620,-172.0,0.00015934,2]
[408101113,1773148231630,-386.3713,0.00015955,2]
[408101114,1773148231639,-150.0,0.00015955,2]
[408101115,1773148231649,-600.0,0.00016021,2]
[408101116,1773148231659,-166.66,0.00016098,2]
[408101117,1773148231669,-154.96035754,0.000161,2]
[408101119,1773148231678,-172.0711239,0.000161,2]
[408101121,1773148231687,-179.55734297,0.000161,2]
[408101122,1773148231696,-167.25885025,0.000161,2]
[408101123,1773148231705,-150.0,0.00016192,30]
[408101124,1773148231715,-2153.1141,0.00016192,2]
[408101125,1773148231725,-1919.0254,0.00016192,2]
[408101126,1773148231734,-1305.78758415,0.000162,5]
[408101127,1773148231743,-550.0,0.00016207,2]
[408101128,1773148231752,-5485.40333277,0.00016208,2]
[408101129,1773148231764,-1634.00894998,0.00016208,2]
[408101130,1773148231792,-784.32744492,0.00016208,2]
[408101131,1773148231803,-1321.18033778,0.00016208,2]
[408101132,1773148231815,-603.91782223,0.00016208,2]
[408101133,1773148231824,-83.24356469,0.00016208,2]
[408101134,1773148231835,-1407.00725734,0.00016208,2]
[408101135,1773148231846,-7794.63664824,0.00016208,2]
[408101136,1773148231856,-175.98736155,0.00016272,2]
[408101137,1773148231866,-161.86139248,0.00016273,2]
[408101138,1773148231875,-500.0,0.00016273,2]
[408101139,1773148231885,-500.0,0.00016273,2]
[408101140,1773148231894,-500.0,0.00016273,2]
[408101141,1773148231903,-500.0,0.00016273,2]
[408101142,1773148231913,-500.0,0.00016273,2]
[408101143,1773148231922,-500.0,0.00016273,2]
[408101144,1773148231932,-500.0,0.00016273,2]
[408101145,1773148231942,-500.0,0.00016273,2]
[408101146,1773148231951,-500.0,0.00016273,2]
[408101147,1773148231961,-500.0,0.00016273,2]
[408101148,1773148231970,-500.0,0.00016273,2]
[408101149,1773148231979,-500.0,0.00016273,2]
[408101150,1773148231988,-500.0,0.00016273,2]
[408101151,1773148231998,-500.0,0.00016273,2]
[408101152,1773148232007,-177.0,0.00016274,2]
[408101153,1773148232017,-150.0,0.00016274,2]
[408101154,1773148232027,-1004.88354371,0.00016282,2]
[408101155,1773148232036,-402.26586063,0.00016283,2]
[408101156,1773148232046,-485.33,0.00016283,3]
[408101157,1773148232056,-500.0,0.00016283,2]
[408101158,1773148232065,-500.0,0.00016283,2]
[408101159,1773148232074,-500.0,0.00016283,2]
[408101160,1773148232084,-500.0,0.00016283,2]
[408101161,1773148232093,-500.0,0.00016283,2]
[408101162,1773148232103,-500.0,0.00016283,2]
[408101163,1773148232112,-500.0,0.00016283,2]
[408101164,1773148232121,-500.0,0.00016283,2]
[408101165,1773148232130,-200.0,0.00016283,2]
[408101166,1773148232139,-500.0,0.00016283,2]
[408101167,1773148232148,-500.0,0.00016283,2]
[408101168,1773148232158,-500.0,0.00016283,2]
[408101169,1773148232167,-428.63987053,0.00016283,2]
[408101170,1773148232176,-500.0,0.00016283,2]
[408101171,1773148232185,-151.0,0.00016283,2]
[408101172,1773148232194,-500.0,0.00016283,2]
[408101173,1773148232203,-151.0,0.00016283,2]
[408101174,1773148232213,-500.0,0.00016283,2]
[408101175,1773148232222,-151.0,0.00016283,2]
[408101176,1773148232231,-500.0,0.00016283,2]
[408101177,1773148232240,-151.0,0.00016283,2]
[408101178,1773148232250,-500.0,0.00016283,2]
[408101179,1773148232260,-151.0,0.00016283,2]
[408101180,1773148232269,-500.0,0.00016283,2]
[408101181,1773148232278,-151.0,0.00016283,2]
[408101182,1773148232287,-500.0,0.00016283,2]
[408101183,1773148232297,-151.0,0.00016283,2]
[408101184,1773148232306,-500.0,0.00016283,2]
[408101185,1773148232315,-151.0,0.00016283,2]
[408101186,1773148232325,-240.83222841,0.00016283,2]
[408101187,1773148232334,-151.0,0.00016283,2]
[408101188,1773148232343,-151.0,0.00016283,2]
[408101189,1773148232352,-151.0,0.00016283,2]
[408101190,1773148232361,-151.0,0.00016283,2]
[408101191,1773148232371,-151.42631785,0.00016283,2]
[408101192,1773148232380,-151.0,0.00016283,2]
[408101193,1773148232389,-151.0,0.00016283,2]
[408101194,1773148232398,-151.0,0.00016283,2]
[408101195,1773148232408,-151.0,0.00016283,2]
[408101196,1773148232417,-151.0,0.00016283,2]
[408101197,1773148232426,-151.0,0.00016283,2]
[408101198,1773148232435,-151.0,0.00016283,2]
[408101199,1773148232444,-151.0,0.00016283,2]
[408101200,1773148232453,-151.0,0.00016283,2]
[408101201,1773148232463,-151.0,0.00016283,2]
[408101202,1773148232472,-151.0,0.00016283,2]
[408101203,1773148232486,-151.0,0.00016283,2]
[408101204,1773148232495,-151.0,0.00016283,2]
[408101205,1773148232504,-151.0,0.00016283,2]
[408101206,1773148232515,-151.0,0.00016283,2]
[408101207,1773148232524,-151.0,0.00016283,2]
[408101208,1773148232534,-151.0,0.00016283,2]
[408101209,1773148232543,-151.0,0.00016283,2]
[408101210,1773148232553,-151.0,0.00016283,2]
[408101211,1773148232564,-278.54774132,0.00016283,2]
[408101212,1773148232573,-3173.57426313,0.0001629,2]
[408101213,1773148232583,-500.0,0.00016292,2]
[408101214,1773148232593,-180.11276457,0.00016292,2]
[408101215,1773148232603,-930.34897647,0.00016292,2]
[408101216,1773148232612,-930.34897647,0.00016292,2]
[408101217,1773148232623,-930.34897647,0.00016292,2]
[408101218,1773148232632,-930.34897647,0.00016292,2]
[408101219,1773148232642,-930.34897647,0.00016292,2]
[408101220,1773148232653,-930.34897647,0.00016292,2]
[408101221,1773148232664,-930.34897647,0.00016292,2]
[408101222,1773148232673,-930.34897647,0.00016292,2]
[408101223,1773148232682,-930.34897647,0.00016292,2]
[408101224,1773148232691,-930.34897647,0.00016292,2]
[408101225,1773148232700,-930.34897647,0.00016292,2]
[408101226,1773148232709,-930.34897647,0.00016292,2]
[408101227,1773148232718,-930.34897647,0.00016292,2]
[408101228,1773148232728,-930.34897647,0.00016292,2]
[408101229,1773148232738,-930.34897647,0.00016292,2]
[408101230,1773148232749,-930.34897647,0.00016292,2]
[408101231,1773148232758,-930.34897647,0.00016292,2]
[408101232,1773148232768,-930.34897647,0.00016292,2]
[408101233,1773148232779,-930.34897647,0.00016292,2]
[408101234,1773148232792,-930.34897647,0.00016292,2]
[408101235,1773148232802,-930.34897647,0.00016292,2]
[408101236,1773148232812,-930.34897647,0.00016292,2]
[408101237,1773148232821,-930.34897647,0.00016292,2]
[408101238,1773148232831,-930.34897647,0.00016292,2]
[408101239,1773148232842,-930.34897647,0.00016292,2]
[408101240,1773148232852,-930.34897647,0.00016292,2]
[408101241,1773148232861,-930.34897647,0.00016292,2]
[408101242,1773148232870,-930.34897647,0.00016292,2]
[408101243,1773148232879,-930.34897647,0.00016292,2]
[408101244,1773148232889,-930.34897647,0.00016292,2]
[408101245,1773148232898,-930.34897647,0.00016292,2]
[408101246,1773148232907,-930.34897647,0.00016292,2]
[408101247,1773148232916,-930.34897647,0.00016292,2]
[408101248,1773148232925,-930.34897647,0.00016292,2]
[408101249,1773148232934,-930.34897647,0.00016292,2]
[408101250,1773148232944,-930.34897647,0.00016292,2]
[408101251,1773148232953,-930.34897647,0.00016292,2]
[408101252,1773148232963,-930.34897647,0.00016292,2]
[408101253,1773148232972,-930.34897647,0.00016292,2]
[408101254,1773148232981,-359.90512085,0.00016292,2]
[408101255,1773148232990,-930.34897647,0.00016292,2]
[408101256,1773148233000,-939.84233338,0.00016292,2]
[408101257,1773148233009,-939.84233338,0.00016292,2]
[408101258,1773148233018,-939.84233338,0.00016292,2]
[408101259,1773148233027,-939.84233338,0.00016292,2]
[408101260,1773148233036,-939.84233338,0.00016292,2]
[408101261,1773148233045,-939.84233338,0.00016292,2]
[408101262,1773148233054,-939.84233338,0.00016292,2]
[408101263,1773148233063,-939.84233338,0.00016292,2]
[408101264,1773148233072,-939.84233338,0.00016292,2]
[408101265,1773148233082,-939.84233338,0.00016292,2]
[408101266,1773148233092,-939.84233338,0.00016292,2]
[408101267,1773148233101,-939.84233338,0.00016292,2]
[408101268,1773148233110,-939.84233338,0.00016292,2]
[408101269,1773148233119,-939.84233338,0.00016292,2]
[408101270,1773148233128,-939.84233338,0.00016292,2]
[408101271,1773148233137,-939.84233338,0.00016292,2]
[408101272,1773148233146,-939.84233338,0.00016292,2]
[408101273,1773148233155,-939.84233338,0.00016292,2]
[408101274,1773148233164,-939.84233338,0.00016292,2]
[408101275,1773148233173,-939.84233338,0.00016292,2]
[408101276,1773148233182,-939.84233338,0.00016292,2]
[408101277,1773148233191,-939.84233338,0.00016292,2]
[408101278,1773148233201,-939.84233338,0.00016292,2]
[408101279,1773148233210,-939.84233338,0.00016292,2]
[408101280,1773148233219,-939.84233338,0.00016292,2]
[408101281,1773148233229,-939.84233338,0.00016292,2]
[408101282,1773148233238,-939.84233338,0.00016292,2]
[408101283,1773148233247,-939.84233338,0.00016292,2]
[408101284,1773148233256,-939.84233338,0.00016292,2]
[408101285,1773148233265,-939.84233338,0.00016292,2]
[408101286,1773148233275,-939.84233338,0.00016292,2]
[408101287,1773148233284,-939.84233338,0.00016292,2]
[408101288,1773148233293,-939.84233338,0.00016292,2]
[408101289,1773148233302,-939.84233338,0.00016292,2]
[408101290,1773148233311,-939.84233338,0.00016292,2]
[408101291,1773148233321,-939.84233338,0.00016292,2]
[408101292,1773148233330,-939.84233338,0.00016292,2]
[408101293,1773148233340,-939.84233338,0.00016292,2]
[408101294,1773148233350,-939.84233338,0.00016292,2]
[408101295,1773148233360,-939.84233338,0.00016292,2]
[408101296,1773148233370,-500.0,0.00016292,2]
[408101297,1773148233380,-500.0,0.00016292,2]
[408101298,1773148233390,-368.80399121,0.00016292,2]
[408101299,1773148233399,-500.0,0.00016292,2]
[408101300,1773148233409,-500.0,0.00016292,2]
[408101301,1773148233419,-363.79317763,0.00016292,2]
[408101302,1773148233429,-500.0,0.00016292,2]
[408101303,1773148233438,-500.0,0.00016292,2]
[408101304,1773148233448,-274.78970882,0.00016292,2]
[408101305,1773148233458,-500.0,0.00016292,2]
[408101306,1773148233468,-500.0,0.00016292,2]
[408101307,1773148233480,-614.40045552,0.00016292,2]
[408101308,1773148233489,-188.78597381,0.00016292,2]
[408101309,1773148233499,-867.14048014,0.00016292,2]
[408101310,1773148233509,-867.14048014,0.00016292,2]
[408101311,1773148233519,-867.14048014,0.00016292,2]
[408101312,1773148233529,-867.14048014,0.00016292,2]
[408101313,1773148233538,-867.14048014,0.00016292,2]
[408101314,1773148233550,-867.14048014,0.00016292,2]
[408101315,1773148233559,-867.14048014,0.00016292,2]
[408101316,1773148233568,-867.14048014,0.00016292,2]
[408101317,1773148233578,-867.14048014,0.00016292,2]
[408101318,1773148233587,-867.14048014,0.00016292,2]
[408101319,1773148233596,-867.14048014,0.00016292,2]
[408101320,1773148233606,-500.0,0.00016292,2]
[408101321,1773148233615,-500.0,0.00016292,2]
[408101322,1773148233624,-500.0,0.00016292,2]
[408101323,1773148233633,-500.0,0.00016292,2]
[408101324,1773148233642,-500.0,0.00016292,2]
[408101325,1773148233653,-500.0,0.00016292,2]
[408101326,1773148233663,-174.25741484,0.00016292,2]
[408101327,1773148233672,-500.0,0.00016292,2]
[408101328,1773148233681,-500.0,0.00016292,2]
[408101329,1773148233690,-500.0,0.00016292,2]
[408101330,1773148233699,-500.0,0.00016292,2]
[408101331,1773148233708,-500.0,0.00016292,2]
[408101332,1773148233717,-500.0,0.00016292,2]
[408101333,1773148233726,-318.5750782,0.00016292,2]
[408101334,1773148233736,-500.0,0.00016292,2]
[408101335,1773148233744,-481.66163834,0.00016292,2]
[408101336,1773148233753,-524.2531773,0.00016292,2]
[408101337,1773148233762,-251.2,0.00016292,2]
[408101338,1773148233771,-500.0,0.00016292,2]
[408101339,1773148233782,-619.28774558,0.00016292,2]
[408101340,1773148233791,-1029.531,0.00016292,2]
[408101341,1773148233800,-500.0,0.00016292,2]
[408101342,1773148233809,-500.0,0.00016292,2]
[408101343,1773148233818,-332.13413626,0.00016292,2]
[408101344,1773148233828,-142642.18834858,0.00016293,2]
[408101345,1773148233841,-10047.23546456,0.00016293,2]
[408101346,1773148233852,-16446.67720638,0.00016293,2]
[408101347,1773148233867,-2256.41771873,0.00016293,2]
[408101348,1773148233877,-268.11954018,0.00016293,2]
[408101349,1773148233888,-321.55982235,0.00016293,2]
[408101350,1773148233898,-6779.46985046,0.00016293,2]
[408101351,1773148237383,-1623.70486216,0.00016293,2]
[408101352,1773148237440,-2319614.6271866,0.00016293,2]
[408101353,1773148237450,-1921.4,0.00016308,2]
[408101354,1773148237459,-457.256279,0.00016459,7]
[408101355,1773148237469,-557.02,0.00016472,2]
[408101356,1773148237480,-557.02,0.00016472,2]
[408101357,1773148237491,-504.81219499,0.00016566,2]
[408101358,1773148237502,-9828.83788759,0.00016615,2]
[408101359,1773148237511,-9284.88747019,0.00016615,2]
[408101360,1773148237527,-568.42800531,0.00016675,2]
[408101361,1773148237536,-313.0,0.00016677,2]
[408101362,1773148237546,-300.0,0.00016767,2]
[408101363,1773148237556,-250.0,0.00016767,2]
[408101367,1773148237826,-600.0,0.00016767,2]
[408101368,1773148237837,-1000.0,0.00016821,2]
[408101369,1773148237848,-234.81595298,0.00016821,2]
[408101370,1773148237858,-1000.0,0.00016821,2]
[408101371,1773148237867,-1000.0,0.00016821,2]
[408101372,1773148237876,-1000.0,0.00016821,2]
[408101373,1773148237886,-1000.0,0.00016821,2]
[408101374,1773148237897,-1000.0,0.00016821,2]
[408101375,1773148237907,-1000.0,0.00016821,2]
[408101376,1773148237917,-1000.0,0.00016821,2]
[408101377,1773148237926,-1000.0,0.00016821,2]
[408101378,1773148237936,-1137.10281941,0.00016821,2]
[408101379,1773148237947,-1000.0,0.00016821,2]
[408101380,1773148237957,-200.0,0.00016831,2]
[408101381,1773148237966,-201.55555556,0.000169,2]
[408101382,1773148237975,-1877.83822342,0.000169,2]
[408101383,1773148237986,-198.93673828,0.000169,2]
[408101384,1773148237998,-559.25,0.00016979,2]
[408101385,1773148238008,-172520.2113244,0.00017,2]
[408101386,1773148238704,-735.44834031,0.00017,2]
[408101387,1773148238717,-3059.22637876,0.00017,2]
[408101388,1773148238728,-449.3404125,0.00017,2]
[408101389,1773148238743,-780.00000001,0.00017,2]
[408101390,1773148238756,-298.62469339,0.00017,2]
[408101391,1773148239861,-500.0,0.00017,2]
[408101392,1773148239986,-26665.50938659,0.00017,2]
[408101393,1773148239995,-508.0,0.00017,2]
[408101394,1773148240004,-9828.83788759,0.00017022,2]
[408101395,1773148240013,-9284.88747019,0.00017022,2]
[408101396,1773148240021,-1921.4,0.00017085,2]
[408101397,1773148240030,-54243.60633042,0.000171,2]
[408101398,1773148240039,-10960.6896483,0.0001711,2]
[408101399,1773148240047,-1680.0,0.00017119,2]
[408101400,1773148240056,-2000.0,0.0001715,2]
[408101401,1773148240066,-420.0,0.00017277,2]
[408101402,1773148240074,-889.15,0.00017292,2]
[408101403,1773148240083,-411.32,0.00017325,2]
[408101404,1773148240092,-919.0,0.00017325,2]
[408101405,1773148240100,-1500.0,0.00017368,2]
[408101406,1773148240110,-1500.0,0.00017368,2]
[408101407,1773148240119,-1000.0,0.00017368,2]
[408101408,1773148240128,-1500.0,0.00017368,2]
[408101409,1773148240136,-1500.0,0.00017368,2]
[408101410,1773148240145,-783.18830784,0.00017368,2]
[408101411,1773148240154,-1500.0,0.00017368,2]
[408101412,1773148240163,-200.0,0.00017379,2]
[408101413,1773148240171,-9828.83788759,0.00017429,2]
[408101414,1773148240180,-9284.88747019,0.00017429,2]
[408101415,1773148240189,-786.60582921,0.000177,2]
[408101416,1773148240198,-695.39793187,0.00017719,2]
[408101417,1773148240207,-250.0,0.00017719,2]
[408101418,1773148240216,-1000.0,0.00017719,2]
[408101419,1773148240225,-250.0,0.00017719,2]
[408101420,1773148240234,-250.0,0.00017719,2]
[408101421,1773148240243,-250.0,0.00017719,2]
[408101422,1773148240251,-250.0,0.00017719,2]
[408101423,1773148240260,-250.0,0.00017719,2]
[408101424,1773148240269,-250.0,0.00017719,2]
[408101425,1773148240278,-250.0,0.00017719,2]
[408101426,1773148240287,-1128.72123701,0.00017719,2]
[408101427,1773148240296,-578.20924308,0.00017719,2]
[408101428,1773148240305,-250.0,0.00017719,2]
[408101429,1773148240314,-250.0,0.00017719,2]
[408101430,1773148240324,-1500.0,0.00017719,2]
[408101431,1773148240335,-250.0,0.00017719,2]
[408101432,1773148240349,-250.0,0.00017719,2]
[408101433,1773148240373,-250.0,0.00017719,2]
[408101434,1773148240400,-1500.0,0.00017719,2]
[408101435,1773148240409,-250.0,0.00017719,2]
[408101436,1773148240418,-250.0,0.00017719,2]
[408101437,1773148240428,-151.0,0.00017719,2]
[408101438,1773148240436,-1592.44280863,0.00017719,2]
[408101439,1773148240446,-250.0,0.00017719,2]
[408101440,1773148240455,-250.0,0.00017719,2]
[408101441,1773148240464,-1000.0,0.00017719,2]
[408101442,1773148240475,-250.0,0.00017719,2]
[408101443,1773148240486,-773.73733787,0.00017719,2]
[408101444,1773148240495,-174.61919141,0.00017719,2]
[408101445,1773148240504,-256.00624791,0.00017719,2]
[408101446,1773148240513,-743.50770149,0.00017719,2]
[408101447,1773148240523,-10000.0,0.00017719,2]
[408101448,1773148240532,-7573.58165349,0.00017719,2]
[408101449,1773148240541,-500.0,0.00017719,2]
[408101450,1773148240552,-200.0,0.00017719,2]
[408101451,1773148240561,-266.11523531,0.00017719,2]
[408101452,1773148240570,-1500.0,0.00017719,2]
[408101453,1773148240579,-1500.0,0.00017719,2]
[408101454,1773148240588,-1500.0,0.00017719,2]
[408101455,1773148240597,-1500.0,0.00017719,2]
[408101456,1773148240606,-1500.0,0.00017719,2]
[408101457,1773148240615,-1500.0,0.00017719,2]
[408101458,1773148240624,-1041.02516385,0.00017719,2]
[408101459,1773148240632,-668.65185757,0.00017719,2]
[408101460,1773148240641,-262.90206542,0.00017719,2]
[408101461,1773148240650,-284.23461193,0.00017719,2]
[408101462,1773148240659,-2027.56,0.00017747,2]
[408101463,1773148240669,-151.0,0.00017774,2]
[408101464,1773148240678,-2445.46,0.000178,2]
[408101465,1773148240687,-800.0,0.00017808,2]
[408101467,1773148240696,-221.911124,0.00017815,2]
[408101469,1773148240705,-151.0,0.00017829,2]
[408101470,1773148240714,-9828.83788759,0.00017836,2]
[408101471,1773148240723,-9284.88747019,0.00017836,2]
[408101472,1773148240734,-1007.12616149,0.0001786,2]
[408101473,1773148240745,-1921.4,0.00017862,2]
[408101474,1773148240755,-151.0,0.00017884,2]
[408101475,1773148240766,-1228.83497507,0.0001789,2]
[408101476,1773148240776,-1076.79989794,0.0001789,2]
[408101477,1773148240786,-4749.22872573,0.0001789,2]
[408101478,1773148240796,-2063.01807231,0.000179,2]
[408101479,1773148240806,-526.17740878,0.00017916,2]
[408101480,1773148240817,-2000.0,0.00017916,2]
[408101481,1773148240828,-2000.0,0.00017916,2]
[408101482,1773148240837,-2000.0,0.00017916,2]
[408101483,1773148240846,-2000.0,0.00017916,2]
[408101484,1773148240856,-200.0,0.00017927,2]
[408101485,1773148240865,-500.0,0.00017938,2]
[408101486,1773148240874,-500.0,0.00017938,2]
[408101487,1773148240883,-500.0,0.00017938,2]
[408101488,1773148240893,-151.0,0.00017939,2]
[408101489,1773148240902,-151.0,0.00017994,2]
[408101490,1773148240911,-151.0,0.00018049,2]
[408101491,1773148240921,-151.0,0.00018104,2]
[408101492,1773148240930,-151.0,0.00018159,2]
[408101493,1773148240939,-151.0,0.00018214,2]
[408101494,1773148240950,-9828.83788759,0.00018243,2]
[408101495,1773148240960,-9284.88747019,0.00018243,2]
[408101496,1773148240970,-1000.0,0.00018267,2]
[408101497,1773148240980,-181.08010149,0.00018267,2]
[408101498,1773148240989,-869.39421668,0.00018267,2]
[408101499,1773148240999,-200.0,0.00018267,2]
[408101500,1773148241008,-485.4185,0.00018267,2]
[408101501,1773148241017,-272.62944185,0.00018267,2]
[408101502,1773148241026,-288.79400444,0.00018269,2]
[408101503,1773148241035,-687.0,0.00018358,2]
[408101504,1773148241044,-201.55555556,0.00018386,2]
[408101505,1773148241054,-1877.83822342,0.00018386,2]
[408101506,1773148241063,-1411.35508251,0.00018464,2]
[408101507,1773148241072,-2500.0,0.00018464,2]
[408101508,1773148241081,-2500.0,0.00018464,2]
[408101509,1773148241090,-2500.0,0.00018464,2]
[408101510,1773148241099,-508.0,0.00018465,3]
[408101511,1773148241109,-3428.03,0.00018533,2]
[408101512,1773148241118,-29506.61,0.00018533,2]
[408101513,1773148241127,-9999.99,0.00018533,2]
[408101514,1773148241136,-299.99,0.00018533,4]
[408101515,1773148241145,-9999.99,0.00018533,2]
[408101516,1773148241154,-6272.28,0.00018533,2]
[408101517,1773148241163,-9999.99,0.00018533,2]
[408101518,1773148241172,-3715.38,0.00018533,2]
[408101519,1773148241181,-3198.48,0.00018533,2]
[408101520,1773148241190,-1921.4,0.00018638,2]
[408101521,1773148241200,-9828.83788759,0.0001865,2]
[408101522,1773148241209,-9284.88747019,0.0001865,2]
[408101523,1773148241219,-500.0,0.00018685,7]
[408101524,1773148241228,-411.32,0.00018767,2]
[408101525,1773148241237,-1000.0,0.00018815,2]
[408101526,1773148241247,-187.78006525,0.00018815,2]
[408101527,1773148241257,-200.0,0.00018815,2]
[408101528,1773148241266,-253.17468899,0.00018815,2]
[408101529,1773148241276,-2351.0,0.00018819,2]
[408101530,1773148241285,-587.0,0.00018893,2]
[408101531,1773148241294,-500.0,0.00018936,2]
[408101532,1773148241303,-500.0,0.00018959,7]
[408101533,1773148241601,-21925.96350167,0.00019,2]
[408101534,1773148241611,-4190.36810076,0.00019,2]
[408101535,1773148241620,-459.11608175,0.00019012,2]
[408101536,1773148241630,-3000.0,0.00019012,2]
[408101537,1773148241639,-3000.0,0.00019012,2]
[408101538,1773148241649,-9828.83788759,0.00019057,2]
[408101539,1773148241658,-9284.88747019,0.00019057,2]
[408101540,1773148241668,-500.0,0.00019088,2]
[408101541,1773148241677,-1238.28,0.00019106,2]
[408101542,1773148241686,-1342.03,0.00019178,2]
[408101543,1773148241696,-1342.03,0.00019178,2]
[408101544,1773148241705,-1342.03,0.00019178,2]
[408101545,1773148241714,-1342.03,0.00019178,2]
[408101546,1773148241723,-1342.03,0.00019178,2]
[408101547,1773148241737,-1342.03,0.00019178,2]
[408101548,1773148241747,-1342.03,0.00019178,2]
[408101549,1773148241755,-1342.03,0.00019178,2]
[408101550,1773148241764,-1342.03,0.00019178,2]
[408101551,1773148241774,-1342.03,0.00019178,2]
[408101552,1773148241783,-1342.03,0.00019178,2]
[408101553,1773148241792,-1342.03,0.00019178,2]
[408101554,1773148241801,-1342.03,0.00019178,2]
[408101555,1773148241810,-787.0,0.00019178,2]
[408101556,1773148241820,-500.0,0.00019233,7]
[408101557,1773148241829,-1213.0,0.00019304,2]
[408101558,1773148241839,-922.0,0.00019304,2]
[408101559,1773148241848,-1000.0,0.00019363,2]